fUST/lending_fUST_20240714
["ID","MTS","AMOUNT","RATE_DAILY","PERIOD"]
[331963678,1720903840448,-500.0,0.00024657,2]
[331963679,1720903840457,-500.0,0.00024657,2]
[331963680,1720903840466,-500.0,0.00024657,2]
[331963681,1720903840474,-500.0,0.00024657,2]
[331963682,1720903840484,-500.0,0.00024657,2]
[331963683,1720903840493,-705.36,0.00024657,2]
[331963684,1720903840502,-500.0,0.00024657,2]
[331963685,1720903840511,-500.0,0.00024657,2]
[331963686,1720903840520,-500.0,0.00024657,2]
[331963687,1720903840529,-500.0,0.00024657,2]
[331963688,1720903840541,-500.0,0.00024657,2]
[331963689,1720903840550,-500.0,0.00024657,2]
[331963690,1720903840560,-500.0,0.00024657,2]
[331963691,1720903840569,-500.0,0.00024657,2]
[331963692,1720903840586,-500.0,0.00024657,2]
[331963693,1720903840595,-500.0,0.00024657,2]
[331963694,1720903840604,-161.3704729,0.00024657,2]
[331963695,1720903840613,-500.0,0.00024657,2]
[331963696,1720903840624,-12480.77,0.00024657,2]
[331963697,1720903840635,-500.0,0.00024657,2]
[331963698,1720903840644,-500.0,0.00024657,2]
[331963699,1720903840654,-501.11844022,0.00024657,2]
[331963700,1720903840664,-500.0,0.00024657,2]
[331963701,1720903840674,-500.0,0.00024657,2]
[331963702,1720903840684,-586.06004883,0.00024657,2]
[331963703,1720903840693,-500.0,0.00024657,2]
[331963704,1720903840703,-500.0,0.00024657,2]
[331963705,1720903840712,-500.0,0.00024657,2]
[331963706,1720903840722,-500.0,0.00024657,2]
[331963707,1720903840731,-500.0,0.00024657,2]
[331963708,1720903840741,-500.0,0.00024657,2]
[331963709,1720903840753,-500.0,0.00024657,2]
[331963710,1720903840764,-500.0,0.00024657,2]
[331963711,1720903840774,-500.0,0.00024657,2]
[331963712,1720903840785,-500.0,0.00024657,2]
[331963713,1720903840794,-500.0,0.00024657,2]
[331963714,1720903840804,-511.89,0.00024657,2]
[331963715,1720903840814,-500.0,0.00024657,2]
[331963716,1720903840824,-500.0,0.00024657,2]
[331963717,1720903840833,-500.0,0.00024657,2]
[331963718,1720903840842,-500.0,0.00024657,2]
[331963719,1720903840852,-230.20981038,0.00024657,2]
[331963720,1720903840863,-511.74475912,0.00024657,2]
[331963721,1720903840876,-500.0,0.00024657,2]
[331963722,1720903840890,-518.23035711,0.00024657,2]
[331963723,1720903840902,-533.51,0.00024657,2]
[331963724,1720903840911,-2179.67,0.00024657,2]
[331963725,1720903840922,-593.98441545,0.00024657,2]
[331963726,1720903840935,-500.0,0.00024657,2]
[331963727,1720903840946,-500.0,0.00024657,2]
[331963728,1720903840955,-199.52435898,0.00024657,2]
[331963729,1720903840968,-311.42736687,0.00024657,2]
[331963730,1720903840979,-500.0,0.00024657,2]
[331963731,1720903840990,-500.0,0.00024657,2]
[331963732,1720903841000,-500.0,0.00024657,2]
[331963733,1720903841011,-500.0,0.00024657,2]
[331963734,1720903841020,-730.55,0.00024657,2]
[331963736,1720903841031,-500.0,0.00024657,2]
[331963738,1720903841040,-504.68680287,0.00024657,2]
[331963739,1720903841050,-500.0,0.00024657,2]
[331963740,1720903841060,-294.3903744,0.00024657,2]
[331963741,1720903841071,-500.0,0.00024657,2]
[331963742,1720903841080,-500.0,0.00024657,2]
[331963744,1720903841090,-500.0,0.00024657,2]
[331963745,1720903841100,-500.0,0.00024657,2]
[331963746,1720903841109,-500.0,0.00024657,2]
[331963747,1720903841119,-589.53099683,0.00024657,2]
[331963748,1720903841128,-500.0,0.00024657,2]
[331963749,1720903841137,-500.0,0.00024657,2]
[331963751,1720903841147,-500.0,0.00024657,2]
[331963752,1720903841157,-500.0,0.00024657,2]
[331963753,1720903841166,-500.0,0.00024657,2]
[331963754,1720903841176,-500.0,0.00024657,2]
[331963755,1720903841185,-500.0,0.00024657,2]
[331963756,1720903841195,-518.50492541,0.00024657,2]
[331963758,1720903841205,-876.87,0.00024657,2]
[331963760,1720903841215,-500.0,0.00024657,2]
[331963762,1720903841225,-500.0,0.00024657,2]
[331963763,1720903841234,-500.0,0.00024657,2]
[331963765,1720903841243,-500.0,0.00024657,2]
[331963766,1720903841253,-500.0,0.00024657,2]
[331963768,1720903841263,-500.0,0.00024657,2]
[331963770,1720903841273,-500.0,0.00024657,2]
[331963772,1720903841286,-500.0,0.00024657,2]
[331963774,1720903841295,-500.0,0.00024657,2]
[331963776,1720903841306,-500.0,0.00024657,2]
[331963777,1720903841316,-500.0,0.00024657,2]
[331963779,1720903841326,-500.0,0.00024657,2]
[331963780,1720903841335,-500.0,0.00024657,2]
[331963781,1720903841346,-500.0,0.00024657,2]
[331963782,1720903841355,-500.0,0.00024657,2]
[331963783,1720903841365,-500.0,0.00024657,2]
[331963784,1720903841374,-501.13533094,0.00024657,2]
[331963785,1720903841384,-186.46481003,0.00024657,2]
[331963786,1720903841394,-500.0,0.00024657,2]
[331963787,1720903841403,-575.43587063,0.00024657,2]
[331963788,1720903841413,-206.33398649,0.00024657,2]
[331963789,1720903841422,-365.49568131,0.00024657,2]
[331963790,1720903841432,-500.0,0.00024657,2]
[331963791,1720903841441,-500.0,0.00024657,2]
[331963792,1720903841452,-500.0,0.00024657,2]
[331963793,1720903841462,-500.0,0.00024657,2]
[331963794,1720903841472,-500.0,0.00024657,2]
[331963795,1720903841481,-500.0,0.00024657,2]
[331963796,1720903841490,-500.0,0.00024657,2]
[331963797,1720903841500,-500.0,0.00024657,2]
[331963798,1720903841510,-500.0,0.00024657,2]
[331963799,1720903841519,-500.0,0.00024657,2]
[331963800,1720903841528,-554.98157626,0.00024657,2]
[331963801,1720903841538,-500.0,0.00024657,2]
[331963802,1720903841547,-500.0,0.00024657,2]
[331963803,1720903841557,-500.0,0.00024657,2]
[331963804,1720903841567,-500.0,0.00024657,2]
[331963805,1720903841577,-500.0,0.00024657,2]
[331963806,1720903841588,-380.0,0.00024658,2]
[331963807,1720903841597,-200.0,0.00024658,2]
[331963808,1720903841607,-500.0,0.00024658,2]
[331963809,1720903841616,-500.0,0.00024658,2]
[331963810,1720903841626,-500.0,0.00024658,2]
[331963811,1720903841635,-500.0,0.00024658,2]
[331963812,1720903841645,-500.0,0.00024658,2]
[331963813,1720903841654,-500.0,0.00024658,2]
[331963814,1720903841664,-500.0,0.00024658,2]
[331963815,1720903841673,-500.0,0.00024658,2]
[331963816,1720903841683,-500.0,0.00024658,2]
[331963817,1720903841692,-500.0,0.00024658,2]
[331963818,1720903841701,-500.0,0.00024658,2]
[331963819,1720903841711,-500.0,0.00024658,2]
[331963820,1720903841720,-500.0,0.00024658,2]
[331963821,1720903841729,-500.0,0.00024658,2]
[331963822,1720903841739,-397.02987974,0.00024658,2]
[331963823,1720903841748,-150.60173835,0.00024689,2]
[331963824,1720903841757,-5029.84758629,0.0002475,2]
[331963825,1720903841767,-4995.09886514,0.00024793,2]
[331963826,1720903841776,-358.35984998,0.00024834,2]
[331963827,1720903841787,-302.27461649,0.000249,2]
[331963828,1720903841796,-13807.828236,0.00024921,3]
[331963829,1720903841805,-556.58695521,0.00024931,2]
[331963830,1720903841814,-269.14879446,0.00024931,2]
[331963831,1720903841824,-597.16461742,0.00024931,2]
[331963832,1720903841834,-500.0,0.00024931,2]
[331963833,1720903841843,-500.0,0.00024931,2]
[331963834,1720903841853,-500.0,0.00024931,2]
[331963835,1720903841865,-500.0,0.00024931,2]
[331963836,1720903841874,-500.0,0.00024931,2]
[331963837,1720903841886,-500.0,0.00024931,2]
[331963838,1720903841895,-500.0,0.00024931,2]
[331963839,1720903841905,-500.0,0.00024931,2]
[331963840,1720903841916,-500.0,0.00024931,2]
[331963841,1720903841927,-500.0,0.00024931,2]
[331963842,1720903841941,-648.80889672,0.00024931,2]
[331963843,1720903841952,-500.0,0.00024931,2]
[331963844,1720903841964,-500.0,0.00024931,2]
[331963845,1720903841973,-310.05746639,0.00024931,2]
[331963846,1720903841983,-204.33614322,0.00024931,2]
[331963847,1720903841992,-500.0,0.00024931,2]
[331963848,1720903842002,-500.0,0.00024931,2]
[331963849,1720903842011,-517.7,0.00024931,2]
[331963850,1720903842020,-500.0,0.00024931,2]
[331963851,1720903842030,-500.0,0.00024931,2]
[331963852,1720903842040,-500.0,0.00024931,2]
[331963853,1720903842050,-500.0,0.00024931,2]
[331963854,1720903842060,-500.0,0.00024931,2]
[331963855,1720903842069,-500.0,0.00024931,2]
[331963856,1720903842078,-500.0,0.00024931,2]
[331963857,1720903842088,-500.0,0.00024931,2]
[331963858,1720903842097,-500.0,0.00024931,2]
[331963859,1720903842106,-500.0,0.00024931,2]
[331963860,1720903842117,-764.10820365,0.00024931,5]
[331963861,1720903842127,-500.0,0.00024931,2]
[331963862,1720903842137,-500.0,0.00024931,2]
[331963863,1720903842147,-173.86,0.00024931,2]
[331963864,1720903842156,-319.23371502,0.00024931,2]
[331963865,1720903842165,-500.0,0.00024931,2]
[331963866,1720903842175,-519.92652808,0.00024931,2]
[331963867,1720903842184,-526.60376622,0.00024931,2]
[331963868,1720903842193,-500.0,0.00024931,2]
[331963869,1720903842202,-500.0,0.00024931,2]
[331963870,1720903842211,-500.0,0.00024931,2]
[331963871,1720903842221,-841.34,0.00024931,2]
[331963872,1720903842230,-500.0,0.00024931,2]
[331963873,1720903842240,-500.0,0.00024931,2]
[331963874,1720903842249,-500.0,0.00024931,2]
[331963875,1720903842258,-319.37,0.00024931,2]
[331963876,1720903842267,-418.09076287,0.00024931,2]
[331963877,1720903842277,-500.0,0.00024931,2]
[331963878,1720903842358,-505.61919787,0.00024931,2]
[331963879,1720903842368,-518.08487076,0.00024931,2]
[331963880,1720903842377,-2209.86,0.00024931,2]
[331963881,1720903842387,-500.0,0.00024931,2]
[331963882,1720903842396,-530.51,0.00024931,2]
[331963883,1720903842405,-421.7,0.00024931,2]
[331963884,1720903842415,-500.0,0.00024931,2]
[331963885,1720903842424,-500.0,0.00024931,2]
[331963886,1720903842434,-500.0,0.00024931,2]
[331963887,1720903842444,-509.20251714,0.00024931,2]
[331963888,1720903842453,-500.0,0.00024931,2]
[331963889,1720903842463,-500.0,0.00024931,2]
[331963890,1720903842473,-500.0,0.00024931,2]
[331963891,1720903842483,-500.0,0.00024931,2]
[331963892,1720903842493,-500.0,0.00024931,2]
[331963893,1720903842504,-500.0,0.00024931,2]
[331963894,1720903842513,-500.0,0.00024931,2]
[331963895,1720903842523,-705.36,0.00024931,2]
[331963896,1720903842535,-500.0,0.00024931,2]
[331963897,1720903842545,-500.0,0.00024931,2]
[331963898,1720903842557,-500.0,0.00024931,2]
[331963899,1720903842566,-500.0,0.00024931,2]
[331963900,1720903842575,-500.0,0.00024931,2]
[331963901,1720903842584,-12480.77,0.00024931,2]
[331963902,1720903842593,-500.0,0.00024931,2]
[331963903,1720903842602,-500.0,0.00024931,2]
[331963904,1720903842611,-500.0,0.00024931,2]
[331963905,1720903842620,-500.0,0.00024931,2]
[331963906,1720903842630,-500.0,0.00024931,2]
[331963907,1720903842639,-500.0,0.00024931,2]
[331963908,1720903842649,-500.0,0.00024931,2]
[331963909,1720903842658,-500.0,0.00024931,2]
[331963910,1720903842667,-500.0,0.00024931,2]
[331963911,1720903842676,-569.55700973,0.00024931,2]
[331963912,1720903842685,-2179.67,0.00024931,2]
[331963913,1720903842694,-500.0,0.00024931,2]
[331963914,1720903842703,-500.0,0.00024931,2]
[331963915,1720903842712,-301.53276867,0.00024931,2]
[331963916,1720903842722,-500.0,0.00024931,2]
[331963917,1720903842731,-730.55,0.00024931,2]
[331963918,1720903842741,-500.0,0.00024931,2]
[331963919,1720903842750,-500.0,0.00024931,2]
[331963920,1720903842759,-582.77207556,0.00024931,2]
[331963921,1720903842768,-500.0,0.00024931,2]
[331963922,1720903842777,-500.0,0.00024931,2]
[331963923,1720903842787,-575.40132508,0.00024931,2]
[331963924,1720903842797,-500.0,0.00024931,2]
[331963925,1720903842806,-500.0,0.00024931,2]
[331963926,1720903842815,-500.0,0.00024931,2]
[331963928,1720903842824,-500.0,0.00024931,2]
[331963930,1720903842834,-876.87,0.00024931,2]
[331963932,1720903842843,-500.0,0.00024931,2]
[331963934,1720903842852,-500.0,0.00024931,2]
[331963936,1720903842861,-460.69979314,0.00024931,2]
[331963941,1720903842968,-394.45920904,0.00024242,2]
[331963942,1720903842977,-39.30020686,0.00024931,2]
[331963943,1720903842987,-500.0,0.00024931,2]
[331963945,1720903842996,-512.33986517,0.00024931,2]
[331963947,1720903843005,-500.0,0.00024931,2]
[331963948,1720903843014,-504.76729393,0.00024931,2]
[331963950,1720903843023,-500.0,0.00024931,2]
[331963952,1720903843033,-500.0,0.00024931,2]
[331963953,1720903843043,-500.0,0.00024931,2]
[331963954,1720903843052,-500.0,0.00024931,2]
[331963955,1720903843062,-500.0,0.00024931,2]
[331963956,1720903843071,-500.0,0.00024931,2]
[331963957,1720903843080,-500.0,0.00024931,2]
[331963958,1720903843090,-500.0,0.00024931,2]
[331963959,1720903843099,-507.16,0.00024931,2]
[331963960,1720903843109,-5029.84758629,0.00024953,2]
[331963961,1720903843118,-358.35985005,0.00024961,2]
[331963962,1720903843127,-1000.0,0.00025,25]
[331963963,1720903843138,-4995.09886514,0.00025123,2]
[331963964,1720903843148,-13807.828236,0.00025147,3]
[331963965,1720903843161,-5029.84758629,0.00025155,2]
[331963966,1720903843175,-260.47015326,0.00025204,2]
[331963967,1720903843189,-356.28190565,0.00025205,2]
[331963968,1720903843203,-500.0,0.00025205,2]
[331963969,1720903843214,-500.0,0.00025205,2]
[331963970,1720903843225,-500.0,0.00025205,2]
[331963971,1720903843238,-500.0,0.00025205,2]
[331963972,1720903843251,-517.7,0.00025205,2]
[331963973,1720903843264,-500.0,0.00025205,2]
[331963974,1720903843277,-217.12,0.00025205,2]
[331963975,1720903843290,-552.94,0.00025205,2]
[331963976,1720903843303,-500.0,0.00025205,2]
[331963977,1720903843316,-500.0,0.00025205,2]
[331963978,1720903843330,-221.14,0.00025205,2]
[331963979,1720903843342,-500.0,0.00025205,2]
[331963980,1720903843354,-500.0,0.00025205,2]
[331963981,1720903843366,-500.0,0.00025205,2]
[331963982,1720903843379,-841.34,0.00025205,2]
[331963983,1720903843391,-500.0,0.00025205,2]
[331963984,1720903843404,-500.0,0.00025205,2]
[331963985,1720903843416,-2209.86,0.00025205,2]
[331963986,1720903843427,-253.15,0.00025205,2]
[331963987,1720903843437,-426.43,0.00025205,2]
[331963988,1720903843450,-329.03583086,0.00025205,2]
[331963989,1720903843461,-500.0,0.00025205,2]
[331963990,1720903843474,-500.0,0.00025205,2]
[331963991,1720903843486,-500.0,0.00025205,2]
[331963992,1720903843499,-500.0,0.00025205,2]
[331963993,1720903843510,-500.0,0.00025205,2]
[331963994,1720903843523,-705.36,0.00025205,2]
[331963995,1720903843537,-500.0,0.00025205,2]
[331963996,1720903843550,-500.0,0.00025205,2]
[331963997,1720903843564,-500.0,0.00025205,2]
[331963998,1720903843574,-557.56,0.00025205,2]
[331963999,1720903843585,-12480.77,0.00025205,2]
[331964000,1720903843596,-500.0,0.00025205,2]
[331964001,1720903843607,-301.53449734,0.00025205,2]
[331964002,1720903843620,-500.0,0.00025205,2]
[331964003,1720903843632,-508.37111706,0.00025205,2]
[331964004,1720903843645,-500.0,0.00025205,2]
[331964005,1720903843656,-2179.67,0.00025205,2]
[331964006,1720903843669,-500.0,0.00025205,2]
[331964007,1720903843680,-500.0,0.00025205,2]
[331964008,1720903843692,-730.55,0.00025205,2]
[331964009,1720903843704,-500.0,0.00025205,2]
[331964010,1720903843715,-258.88605255,0.00025205,2]
[331964011,1720903843726,-500.0,0.00025205,2]
[331964012,1720903843737,-500.0,0.00025205,2]
[331964013,1720903843748,-500.0,0.00025205,2]
[331964014,1720903843758,-876.87,0.00025205,2]
[331964015,1720903843769,-500.0,0.00025205,2]
[331964016,1720903843781,-515.6194065,0.00025205,2]
[331964017,1720903843792,-500.0,0.00025205,2]
[331964018,1720903843803,-500.0,0.00025205,2]
[331964019,1720903843814,-500.0,0.00025205,2]
[331964020,1720903843824,-500.0,0.00025205,2]
[331964021,1720903843836,-553.89,0.00025205,2]
[331964022,1720903843847,-500.0,0.00025205,2]
[331964023,1720903843857,-500.0,0.00025205,2]
[331964024,1720903843868,-13807.828236,0.00025347,3]
[331964025,1720903843879,-5029.84758629,0.00025357,2]
[331964026,1720903843893,-41423.4847081,0.00025447,3]
[331964027,1720903843904,-6972.17254742,0.00025457,5]
[331964028,1720903843915,-24387.52403875,0.00025457,2]
[331964029,1720903843944,-9253.36717713,0.00025457,2]
[331964030,1720903844039,-234.85795018,0.00025457,2]
[331964178,1720904605764,155.45465387,0.00016255,2]
[331964196,1720904846153,-191.27347695,0.00018798,2]
[331964197,1720904846177,-2134.96934119,0.00018899,2]
[331964198,1720904846198,-197.44371632,0.00019039,2]
[331964199,1720904846219,-790.65319772,0.00019164,2]
[331964200,1720904846240,-33.73178147,0.00019703,2]
[331964201,1720904849126,-538.03308877,0.00019703,2]
[331964202,1720904849147,-154.57491897,0.0002,2]
[331964203,1720904849174,-234.128886,0.00020371,2]
[331964204,1720904849195,-250.0,0.00020982,2]
[331964205,1720904849216,-250.0,0.0002104,2]
[331964206,1720904849239,-626.546406,0.00021096,2]
[331964207,1720904849259,-250.0,0.00021098,2]
[331964208,1720904849279,-250.0,0.00021155,2]
[331964209,1720904849299,-250.0,0.00021213,2]
[331964210,1720904849321,-250.0,0.0002127,2]
[331964211,1720904849340,-250.0,0.00021328,2]
[331964212,1720904849361,-300.0,0.00021383,2]
[331964213,1720904849381,-621.20735184,0.00021384,2]
[331964214,1720904849402,-250.0,0.00021385,2]
[331964215,1720904849423,-250.0,0.00021443,2]
[331964216,1720904849443,-250.0,0.000215,2]
[331964217,1720904849464,-250.0,0.00021558,2]
[331964218,1720904849486,-300.0,0.00021614,2]
[331964219,1720904849506,-250.0,0.00021615,2]
[331964220,1720904849526,-250.0,0.00021673,2]
[331964221,1720904849546,-250.0,0.0002173,2]
[331964222,1720904849567,-250.0,0.00021788,2]
[331964223,1720904849589,-1119.54450819,0.00021813,2]
[331964236,1720904945119,-158.28310136,0.00019165,7]
[331964237,1720904945143,-191.27347695,0.00019703,2]
[331964238,1720904945214,197.44371632,0.00019165,2]
[331964239,1720904950130,-154.57491897,0.0002,2]
[331964240,1720904950150,-162.460383,0.00020799,2]
[331964241,1720904950171,-300.0,0.00021812,2]
[331964242,1720904950193,-300.0,0.00021812,2]
[331964243,1720904950212,-428.62808121,0.00021813,2]
[331964244,1720904950232,-6976.35953726,0.00021813,2]
[331964245,1720904950253,-8207.39728823,0.00021813,2]
[331964246,1720904956378,-15573.05820358,0.00021813,2]
[331964247,1720904956399,-250.0,0.00021813,2]
[331964248,1720904956423,-250.0,0.00021845,2]
[331964249,1720904956444,-1318.6728669,0.00021853,2]
[331964264,1720904969089,-1681.3271331,0.00021853,2]
[331964265,1720904969111,-250.0,0.00021903,2]
[331964266,1720904969131,-250.0,0.00021961,2]
[331964267,1720904969152,-250.0,0.00022018,2]
[331964268,1720904969173,-250.0,0.00022076,2]
[331964269,1720904969192,-166.666666,0.00022159,2]
[331964270,1720904969214,-880.43468387,0.0002217,2]
[331964271,1720904974201,-176.12461105,0.00022353,2]
[331964285,1720904989743,454.035231,0.00019753,2]
[331964286,1720904992020,1065.99282123,0.00021917,2]
[331964296,1720905020820,3081.02605815,0.00019164,2]
[331964297,1720905029261,166.666666,0.00021918,2]
[331964355,1720905040571,-1351.99788588,0.00022353,2]
[331964356,1720905040581,-166.666666,0.00022431,2]
[331964357,1720905040590,-620.06036759,0.00022453,2]
[331964358,1720905040599,-161.272065,0.00022459,2]
[331964359,1720905040609,-166.666666,0.00022944,2]
[331964360,1720905040618,-191.13729909,0.00023141,2]
[331964361,1720905040628,-1913.40843699,0.00023453,2]
[331964362,1720905040637,-166.666666,0.00023456,2]
[331964363,1720905040647,-620.00301838,0.00023576,2]
[331964364,1720905040656,-166.666666,0.00023969,2]
[331964365,1720905040666,-955.12112889,0.00024242,2]
[331964366,1720905040676,-166.666666,0.00024482,2]
[331964367,1720905040686,-5094.13724645,0.00024518,2]
[331964368,1720905040695,-4023.87806904,0.00024557,2]
[331964369,1720905040704,-361.11056245,0.00024587,2]
[331964370,1720905040714,-22092.5251777,0.00024647,3]
[331964371,1720905040723,-455.74,0.00024647,3]
[331964372,1720905040733,-11046.2625889,0.00024648,3]
[331964373,1720905040742,-404.40853129,0.00024656,2]
[331964374,1720905040753,-407.39767588,0.00024656,2]
[331964375,1720905040762,-500.0,0.00024656,2]
[331964376,1720905040772,-257.72682944,0.00024656,2]
[331964377,1720905040782,-500.0,0.00024657,2]
[331964378,1720905040791,-535.84,0.00024657,2]
[331964379,1720905040801,-500.0,0.00024657,2]
[331964380,1720905040810,-552.94,0.00024657,2]
[331964381,1720905040819,-500.0,0.00024657,2]
[331964382,1720905040830,-500.0,0.00024657,2]
[331964383,1720905040840,-500.0,0.00024657,2]
[331964384,1720905040849,-500.0,0.00024657,2]
[331964385,1720905040858,-500.0,0.00024657,2]
[331964386,1720905040868,-500.0,0.00024657,2]
[331964387,1720905040877,-500.0,0.00024657,2]
[331964388,1720905040886,-500.0,0.00024657,2]
[331964389,1720905040897,-500.0,0.00024657,2]
[331964390,1720905040907,-500.0,0.00024657,2]
[331964391,1720905040918,-500.0,0.00024657,2]
[331964392,1720905040928,-500.0,0.00024657,2]
[331964393,1720905040938,-500.0,0.00024657,2]
[331964394,1720905040948,-500.0,0.00024657,2]
[331964395,1720905040957,-505.17686854,0.00024657,2]
[331964396,1720905040967,-500.0,0.00024657,2]
[331964397,1720905040977,-500.0,0.00024657,2]
[331964398,1720905040987,-500.0,0.00024657,2]
[331964399,1720905040996,-500.0,0.00024657,2]
[331964400,1720905041006,-500.0,0.00024657,2]
[331964401,1720905041016,-500.0,0.00024657,2]
[331964402,1720905041026,-512.48032506,0.00024657,2]
[331964403,1720905041036,-500.0,0.00024657,2]
[331964404,1720905041046,-500.0,0.00024657,2]
[331964405,1720905041057,-500.0,0.00024657,2]
[331964406,1720905041068,-500.0,0.00024657,2]
[331964407,1720905041079,-500.0,0.00024657,2]
[331964408,1720905041088,-500.0,0.00024657,2]
[331964409,1720905041099,-500.0,0.00024657,2]
[331964410,1720905041109,-500.0,0.00024657,2]
[331964411,1720905041120,-500.0,0.00024657,2]
[331964412,1720905041131,-500.0,0.00024657,2]
[331964413,1720905041143,-500.0,0.00024657,2]
[331964414,1720905041154,-500.0,0.00024657,2]
[331964415,1720905041164,-500.0,0.00024657,2]
[331964416,1720905041174,-500.0,0.00024657,2]
[331964417,1720905041183,-500.0,0.00024657,2]
[331964418,1720905041192,-418.09076287,0.00024657,2]
[331964419,1720905041201,-500.0,0.00024657,2]
[331964420,1720905041211,-501.03463297,0.00024657,2]
[331964421,1720905041220,-500.0,0.00024657,2]
[331964422,1720905041230,-500.0,0.00024657,2]
[331964423,1720905041239,-521.05740123,0.00024657,2]
[331964424,1720905041250,-500.0,0.00024657,2]
[331964425,1720905041261,-500.0,0.00024657,2]
[331964426,1720905041271,-518.57916079,0.00024657,2]
[331964427,1720905041282,-500.0,0.00024657,2]
[331964428,1720905041294,-500.0,0.00024657,2]
[331964429,1720905041303,-168.80151027,0.00024657,2]
[331964430,1720905041312,-507.36,0.00024657,2]
[331964431,1720905041323,-500.0,0.00024657,2]
[331964432,1720905041332,-500.0,0.00024657,2]
[331964433,1720905041343,-1500.0,0.00024657,2]
[331964434,1720905041354,-500.0,0.00024657,2]
[331964435,1720905041364,-500.0,0.00024657,2]
[331964436,1720905041375,-500.0,0.00024657,2]
[331964437,1720905041383,-500.0,0.00024657,2]
[331964438,1720905041392,-500.0,0.00024657,2]
[331964439,1720905041402,-500.0,0.00024657,2]
[331964440,1720905041412,-500.0,0.00024657,2]
[331964441,1720905041422,-500.0,0.00024657,2]
[331964442,1720905041433,-500.0,0.00024657,2]
[331964443,1720905041443,-500.0,0.00024657,2]
[331964444,1720905041454,-500.0,0.00024657,2]
[331964445,1720905041463,-241.67272361,0.00024657,2]
[331964446,1720905041473,-500.0,0.00024657,2]
[331964447,1720905041482,-500.0,0.00024657,2]
[331964448,1720905041492,-500.0,0.00024657,2]
[331964449,1720905041502,-500.0,0.00024657,2]
[331964450,1720905041511,-500.0,0.00024657,2]
[331964451,1720905041521,-538.41600805,0.00024657,2]
[331964452,1720905041532,-500.0,0.00024657,2]
[331964453,1720905041542,-500.0,0.00024657,2]
[331964454,1720905041553,-500.0,0.00024657,2]
[331964455,1720905041563,-500.0,0.00024657,2]
[331964456,1720905041573,-500.0,0.00024657,2]
[331964457,1720905041582,-500.0,0.00024657,2]
[331964458,1720905041591,-505.61919787,0.00024657,2]
[331964459,1720905041600,-500.0,0.00024657,2]
[331964460,1720905041610,-500.0,0.00024657,2]
[331964461,1720905041621,-500.0,0.00024657,2]
[331964462,1720905041632,-546.10016077,0.00024657,2]
[331964463,1720905041644,-500.0,0.00024657,2]
[331964464,1720905041654,-200.0,0.00024657,2]
[331964465,1720905041664,-2198.96,0.00024657,2]
[331964466,1720905041675,-500.0,0.00024657,2]
[331964467,1720905041684,-500.0,0.00024657,2]
[331964468,1720905041696,-500.0,0.00024657,2]
[331964469,1720905041707,-764.10820365,0.00024657,5]
[331964470,1720905041717,-500.0,0.00024657,2]
[331964471,1720905041727,-500.0,0.00024657,2]
[331964472,1720905041737,-509.97908532,0.00024657,2]
[331964473,1720905041746,-500.0,0.00024657,2]